bitfinex-derivatives/quotes_ETHF0:USTF0_20250810
["timestamp","ask_amount","ask_price","bid_price","bid_amount"]
[1754813617487,0.8405,4190.0,4189.4,0.4751]
[1754813617789,0.8405,4189.6,4189.5,1.4626]
[1754813618083,0.8405,4189.6,4189.5,2.2861]
[1754813618583,0.5173,4189.8,4189.7,1.4626]
[1754813618782,0.8405,4189.8,4189.7,1.0465]
[1754813619192,0.8405,4189.8,4189.7,0.4751]
[1754813619590,0.8405,4189.8,4189.7,1.0465]
[1754813619781,0.47723,4190.6,4190.1,1.4626]
[1754813619984,0.8405,4190.2,4190.1,0.4751]
[1754813620294,0.8458,4190.2,4190.1,0.4751]
[1754813620994,0.3232,4189.6,4189.5,1.3147]
[1754813621188,0.8078,4189.6,4189.5,1.811]
[1754813621389,0.8405,4189.6,4189.5,1.811]
[1754813621693,0.8405,4189.6,4189.5,2.2861]
[1754813622483,0.8405,4189.6,4189.5,0.4751]
[1754813623387,0.8405,4189.6,4189.5,1.4626]
[1754813623583,0.8405,4189.6,4189.5,2.2861]
[1754813624593,0.7789,4189.6,4189.5,2.2861]
[1754813625596,0.3232,4189.6,4189.5,2.2861]
[1754813625897,0.8405,4189.6,4189.5,1.7898]
[1754813626398,0.7789,4189.6,4189.5,2.2861]
[1754813629794,0.3232,4189.6,4189.5,2.2861]
[1754813630702,0.56103249,4189.9,4189.8,2.2861]
[1754813631000,0.56103249,4189.9,4189.3,3.2078]
[1754813631001,0.8078,4190.0,4189.9,0.8986]
[1754813631302,0.8405,4190.0,4189.9,0.8986]
[1754813631597,0.8405,4190.0,4189.9,1.7898]
[1754813631800,0.7789,4190.0,4189.9,2.2861]
[1754813632694,1.3178,4190.0,4189.9,2.2861]
[1754813633100,1.3178,4190.0,4189.9,1.0465]
[1754813633396,0.8405,4190.0,4189.9,1.0465]
[1754813633601,0.8405,4190.0,4189.9,0.4751]
[1754813635399,0.8405,4190.0,4189.9,0.787]
[1754813635600,0.8405,4190.0,4189.9,1.0465]
[1754813635802,0.8405,4190.0,4189.9,1.4626]
[1754813636299,0.8405,4190.0,4189.9,1.0465]
[1754813636500,0.8405,4190.0,4189.9,0.4751]
[1754813636999,0.8405,4190.0,4189.9,1.0465]
[1754813637201,0.8405,4190.0,4189.9,1.7898]
[1754813637504,0.8405,4190.0,4189.9,2.2861]
[1754813638307,0.8405,4190.0,4189.9,2.76341]
[1754813638507,0.7789,4190.0,4189.9,2.76341]
[1754813639007,0.7789,4190.0,4189.9,2.2861]
[1754813639202,0.58143249,4190.3,4189.9,1.811]
[1754813639402,0.7993,4190.3,4190.2,1.3147]
[1754813639603,0.7789,4190.3,4190.2,1.7898]
[1754813639806,0.3232,4190.3,4190.2,1.7898]
[1754813640002,0.3232,4190.3,4190.2,2.2861]
[1754813640608,0.8405,4190.3,4190.2,0.4751]
[1754813640808,1.40153249,4190.3,4190.2,1.0465]
[1754813641307,0.56103249,4190.3,4190.2,2.2861]
[1754813641504,0.80046,4190.3,4190.2,0.8986]
[1754813641708,1.31776,4190.3,4190.2,1.7898]
[1754813641899,1.31776,4190.3,4190.2,1.0465]
[1754813642097,1.87879249,4190.3,4190.2,1.3737]
[1754813642305,0.56103249,4190.3,4190.2,2.2861]
[1754813642506,3.531,4190.4,4190.3,2.2861]
[1754813642707,3.9867,4190.4,4190.3,2.2861]
[1754813643609,3.531,4190.4,4190.3,2.2861]
[1754813644002,3.9867,4190.4,4190.3,2.2861]
[1754813644200,3.531,4190.4,4190.3,2.2861]
[1754813644405,1.03713249,4190.7,4190.3,2.2861]
[1754813644608,0.4557,4190.7,4190.6,0.8986]
[1754813644804,14.5668,4190.9,4189.9,3.2078]
[1754813644805,3.2078,4190.9,4190.8,1.811]
[1754813645008,3.2078,4190.9,4190.8,2.2861]
[1754813647210,1.03954017,4191.7,4191.3,0.9069]
[1754813647407,1.4235,4191.7,4191.6,1.7778]
[1754813647610,1.4235,4191.7,4191.6,0.4873]
[1754813648314,1.1557,4191.7,4191.6,2.2319]
[1754813648504,1.4235,4191.7,4191.6,2.2319]
[1754813648705,1.4235,4191.7,4191.6,1.0727]
[1754813648914,1.4235,4191.7,4191.6,0.4873]
[1754813649615,1.4235,4191.7,4191.6,1.0727]
[1754813649818,0.56176513,4191.8,4191.7,2.2319]
[1754813650018,0.56176513,4191.8,4191.0,3.2078]
[1754813650019,3.2078,4191.9,4191.8,2.2319]
[1754813650831,0.56176513,4192.1,4192.0,0.5854]
[1754813651125,3.5119,4192.4,4192.3,2.2319]
[1754813651325,3.2078,4192.4,4192.3,2.2319]
[1754813652119,0.56098347,4193.4,4193.0,0.3836]
[1754813652421,0.56098347,4193.4,4193.3,2.2319]
[1754813652422,2.2038,4193.4,4193.3,2.2319]
[1754813652925,0.8802,4193.4,4193.3,2.2319]
[1754813653325,3.2078,4193.6,4193.5,0.6484]
[1754813653523,3.2078,4193.6,4193.5,2.2319]
[1754813653524,5.4116,4193.6,4193.5,2.2319]
[1754813653722,3.2078,4193.6,4193.5,2.2319]
[1754813654124,5.4116,4193.6,4193.5,2.2319]
[1754813654324,5.4116,4193.6,4193.5,0.9069]
[1754813654525,5.4116,4193.6,4193.5,2.2319]
[1754813654725,0.4769,4193.5,4193.0,0.4541]
[1754813654926,0.8802,4193.1,4193.0,1.361]
[1754813655232,1.0784,4193.5,4193.4,0.9069]
[1754813655433,2.2038,4193.5,4192.7,0.47698]
[1754813655633,2.2038,4193.4,4193.3,1.905]
[1754813655834,0.8802,4193.4,4193.3,2.2319]
[1754813656031,2.2038,4193.4,4193.3,2.2319]
[1754813656228,1.80052,4193.3,4192.7,1.325]
[1754813656429,2.68072,4193.3,4193.2,0.3269]
[1754813656625,2.68072,4193.3,4193.2,1.361]
[1754813656831,1.80053,4193.2,4192.7,1.325]
[1754813657032,2.2038,4192.8,4192.7,0.9069]
[1754813657232,2.68079,4192.7,4192.6,3.2078]
[1754813657727,0.3856,4192.6,4192.5,0.9069]
[1754813657934,3.2078,4193.6,4193.5,2.2319]
[1754813658129,0.86253,4193.2,4192.7,0.4541]
[1754813658329,2.20876,4193.0,4192.9,1.905]
[1754813658533,2.20876,4193.0,4192.9,2.2319]
[1754813658736,2.68076,4193.0,4192.9,2.2319]
[1754813658927,1.7318,4193.0,4192.9,2.2319]
[1754813659125,0.8802,4193.0,4192.9,2.2319]
[1754813659443,1.7318,4193.7,4193.6,0.5854]
[1754813659734,1.7318,4193.7,4193.6,2.2319]
[1754813659929,1.67747955,4195.7,4192.9,3.2078]
[1754813659930,3.6738,4194.4,4193.8,0.9069]
[1754813660130,3.2078,4194.4,4194.3,2.2319]
[1754813660334,1.7318,4195.0,4194.9,1.3942]
[1754813660536,3.2078,4195.6,4195.1,0.47672]
[1754813660738,3.2078,4195.6,4195.0,3.2078]
[1754813660935,3.2078,4196.2,4195.5,0.47667]
[1754813661140,3.2078,4196.2,4195.6,0.9414]
[1754813661343,3.2078,4196.2,4195.9,0.4873]
[1754813661642,3.2078,4196.2,4196.1,1.325]
[1754813662135,0.8516,4195.7,4195.2,0.4873]
[1754813662338,0.466,4195.7,4195.0,3.2078]
[1754813662538,0.47661,4196.1,4195.2,1.325]
[1754813662836,0.466,4195.5,4194.9,0.4541]
[1754813663036,0.472,4195.3,4195.0,0.4873]
[1754813663229,0.3856,4195.8,4195.1,0.8377]
[1754813663430,0.47665,4195.7,4194.7,3.68456]
[1754813663742,1.3236,4195.5,4194.9,0.4873]
[1754813663935,0.47668,4195.4,4194.9,0.4873]
[1754813664132,3.2078,4195.0,4194.2,1.325]
[1754813664332,3.2078,4195.0,4194.5,0.4873]
[1754813664641,3.2078,4194.8,4194.4,0.4873]
[1754813664834,0.8516,4194.7,4194.6,0.8709]
[1754813665035,0.8516,4194.7,4194.6,1.325]
[1754813665235,3.2078,4194.8,4194.4,0.4541]
[1754813665437,3.2078,4194.8,4194.4,1.325]
[1754813665739,3.2078,4194.8,4194.3,1.325]
[1754813665933,3.2078,4194.8,4194.1,0.47683]
[1754813666141,3.2078,4194.8,4194.5,0.8377]
[1754813666341,3.2078,4194.8,4194.2,0.4541]
[1754813666542,3.2078,4194.8,4194.2,1.325]
[1754813666839,3.2078,4194.8,4194.3,1.325]
[1754813667041,3.2078,4194.8,4194.4,0.8377]
[1754813667234,3.2078,4194.8,4194.5,1.325]
[1754813667433,0.3856,4194.9,4194.7,1.325]
[1754813667634,0.3856,4194.9,4194.8,0.4873]
[1754813667635,0.8516,4194.9,4194.8,0.4873]
[1754813667838,1.3236,4194.8,4194.0,3.2078]
[1754813668040,0.3856,4194.1,4193.6,0.4873]
[1754813668248,0.3856,4193.9,4193.8,0.8709]
[1754813668435,0.3856,4193.9,4193.8,1.325]
[1754813668744,0.472,4194.1,4193.5,3.2078]
[1754813668745,1.32843,4194.2,4193.6,1.325]
[1754813668946,3.2078,4194.9,4194.0,3.2078]
[1754813669241,1.3236,4194.4,4194.3,0.4873]
[1754813669444,0.8516,4194.4,4194.3,1.325]
[1754813669834,0.8516,4194.7,4194.4,1.325]
[1754813670039,0.466,4195.4,4194.5,0.47678]
[1754813670339,0.466,4195.4,4194.9,0.3836]
[1754813670542,0.466,4195.4,4195.1,0.8377]
[1754813670739,0.466,4195.4,4195.2,0.4541]
[1754813670940,0.8516,4195.4,4195.3,0.8709]
[1754813671141,0.8516,4195.4,4194.8,0.4873]
[1754813671336,3.2078,4195.5,4194.5,3.68458]
[1754813671541,0.8516,4195.3,4194.8,1.325]
[1754813671742,3.2078,4195.5,4194.8,0.9414]
[1754813671943,3.68448,4195.5,4194.6,0.47677]
[1754813672144,4.07008,4195.5,4194.7,1.325]
[1754813672344,4.07008,4195.5,4194.8,0.8709]
[1754813672544,4.07008,4195.5,4194.5,3.2078]
[1754813672545,0.8516,4195.2,4195.0,1.325]
[1754813672747,0.8516,4195.5,4194.8,0.47674]
[1754813672936,0.47668,4195.4,4194.9,0.8377]
[1754813673142,0.94872,4195.2,4194.9,1.325]
[1754813673338,1.3236,4195.0,4194.9,0.4873]
[1754813673542,0.94878,4194.6,4193.9,3.2078]
[1754813673749,0.47684,4194.1,4193.9,0.4873]
[1754813673948,0.8516,4194.0,4193.9,1.325]
[1754813674248,0.8624,4194.4,4193.9,1.325]
[1754813674451,3.68459,4194.5,4194.1,1.325]
[1754813674646,0.3856,4194.2,4194.1,0.9414]
[1754813674843,0.3856,4194.2,4193.7,0.3836]
[1754813674844,0.47683,4194.1,4193.7,0.3836]
[1754813675040,1.3236,4193.8,4193.5,0.4873]
[1754813675247,0.8458,4193.7,4193.5,0.4873]
[1754813675555,0.8458,4193.7,4193.4,3.2078]
[1754813675556,0.8458,4193.5,4193.4,3.6837]
[1754813675745,1.2931,4193.5,4193.4,3.2078]
[1754813676054,1.2931,4193.5,4193.4,3.6837]
[1754813678745,0.8458,4193.5,4193.4,3.6837]
[1754813678941,0.8458,4193.5,4193.4,4.5546]
[1754813679146,0.3849,4193.8,4193.6,1.3468]
[1754813679350,0.3849,4193.8,4193.7,1.3468]
[1754813679547,0.4609,4193.8,4193.7,1.3468]
[1754813679746,0.55674713,4194.4,4193.8,1.3468]
[1754813679948,0.4609,4194.8,4194.2,1.3468]
[1754813680148,0.94164713,4194.9,4194.3,0.4759]
[1754813680347,0.4609,4194.8,4194.5,0.4759]
[1754813680549,0.3849,4194.4,4194.2,0.4759]
[1754813680751,1.2931,4194.3,4194.2,0.4759]
[1754813681746,0.47682,4194.2,4194.1,3.2078]
[1754813681952,0.8458,4194.2,4194.1,3.2078]
[1754813682152,1.2931,4194.2,4194.1,3.6837]
[1754813682345,0.8458,4194.2,4194.1,4.0699]
[1754813682746,1.2931,4194.2,4194.1,3.2078]
[1754813682951,0.47684,4194.0,4193.4,3.6837]
[1754813683151,0.8458,4194.1,4193.5,0.8621]
[1754813683346,0.47684,4194.0,4193.5,0.8621]
[1754813683554,0.4609,4193.9,4193.4,3.2078]
[1754813683848,0.4609,4193.9,4193.5,1.3468]
[1754813684043,0.4609,4193.8,4193.4,3.68471]
[1754813684244,0.8458,4194.1,4193.8,0.8709]
[1754813684445,1.40254713,4194.4,4193.7,1.3468]
[1754813684652,0.8458,4194.4,4193.8,1.3468]
[1754813684855,0.47681,4194.3,4193.9,1.3468]
[1754813685053,0.8458,4194.1,4194.0,0.8709]
[1754813685456,0.47682,4194.2,4193.4,3.2078]
[1754813685654,0.93778,4193.8,4193.4,3.2078]
[1754813685853,1.2931,4193.7,4193.5,0.4759]
[1754813686047,0.4473,4193.6,4193.4,3.2078]
[1754813686251,0.8458,4193.5,4193.4,3.6837]
[1754813686457,1.2931,4194.3,4193.5,0.9606]
[1754813686657,0.47685,4194.0,4193.4,3.2078]
[1754813686858,0.8458,4193.9,4193.4,3.2078]
[1754813687156,0.8458,4193.8,4193.7,0.8709]
[1754813687549,0.8458,4193.8,4193.7,1.3468]
[1754813687752,0.47681,4194.3,4193.7,0.8709]
[1754813687961,0.3849,4194.0,4193.8,0.8709]
[1754813688256,0.8458,4194.0,4193.9,1.3468]
[1754813688755,0.4609,4194.3,4193.9,1.82365]
[1754813688949,3.2078,4194.5,4193.9,3.2078]
[1754813689453,3.2078,4194.5,4194.1,0.47683]
[1754813689960,3.2078,4194.5,4193.9,3.2078]
[1754813689961,1.2931,4194.4,4194.0,0.4759]
[1754813690151,1.2931,4194.3,4194.0,0.4759]
[1754813690351,0.55985638,4194.4,4194.0,0.4759]
[1754813690551,1.2931,4194.1,4194.0,0.4759]
[1754813690853,0.8458,4193.9,4193.2,1.82374]
[1754813691059,0.8458,4193.9,4193.4,0.47691]
[1754813691364,0.4473,4193.9,4193.7,0.4759]
[1754813691655,0.4473,4193.8,4193.7,0.4759]
[1754813691858,0.4473,4193.8,4193.3,0.4759]
[1754813692157,0.8458,4193.7,4193.6,1.3468]
[1754813692359,0.8458,4193.7,4193.6,0.4759]
[1754813692554,1.2931,4193.7,4193.6,0.4759]
[1754813692855,1.2931,4193.7,4193.1,4.5546]
[1754813693056,1.2931,4193.7,4193.2,0.4759]
[1754813693257,0.4473,4193.7,4193.1,3.2078]
[1754813693456,0.47687,4193.8,4193.3,0.8709]
[1754813693655,0.8458,4193.5,4193.4,1.3468]
[1754813694362,0.3849,4193.5,4193.4,1.3468]
[1754813694653,0.47698,4192.8,4192.6,3.2078]
[1754813694854,0.8458,4192.7,4192.6,3.594]
[1754813695053,0.3849,4193.0,4192.7,0.8709]
[1754813695255,0.3849,4193.0,4192.8,0.8709]
[1754813695456,0.3849,4193.3,4193.1,1.3468]
[1754813695760,0.47694,4193.2,4192.6,3.2078]
[1754813695953,0.86183,4193.3,4192.6,3.2078]
[1754813696353,0.86183,4193.3,4192.7,0.8709]
[1754813696554,0.86183,4193.3,4192.8,0.4759]
[1754813696755,0.47693,4193.3,4192.9,0.3862]
[1754813697060,0.47693,4193.3,4192.6,3.2078]
[1754813697261,0.47693,4193.3,4192.7,0.8709]
[1754813697458,0.47695,4193.1,4192.8,1.3468]
[1754813697657,0.4609,4193.1,4192.6,3.2078]
[1754813697858,0.8458,4193.1,4193.0,1.3468]
[1754813698362,0.8458,4193.9,4193.3,1.3468]
[1754813698555,0.56063992,4193.4,4193.3,1.3468]
[1754813699057,0.47687,4193.8,4192.9,0.47696]
[1754813699058,0.47687,4193.8,4193.0,1.3468]
[1754813699259,0.3849,4193.9,4193.2,5.03153]
[1754813699570,0.56064164,4194.2,4193.4,0.47691]
[1754813699854,3.76844164,4194.3,4193.7,1.82367]
[1754813700062,1.40644164,4194.4,4193.9,1.3468]
[1754813700259,0.8458,4194.6,4193.8,3.6837]
[1754813700455,0.8458,4194.4,4193.8,0.4759]
[1754813700658,0.47685,4194.0,4193.9,0.4759]
[1754813700960,0.4473,4193.5,4192.9,0.4759]
[1754813701257,0.47697,4192.9,4192.8,0.4759]
[1754813701450,0.47697,4192.9,4192.6,3.6837]
[1754813701652,0.47697,4192.9,4192.6,3.2078]
[1754813701852,0.47697,4192.9,4192.8,1.3468]
[1754813702050,0.3849,4193.1,4192.6,3.2078]
[1754813702255,0.8458,4193.0,4192.9,0.8709]
[1754813702861,0.8458,4193.0,4192.9,1.3468]
[1754813703065,0.8458,4193.0,4192.9,0.4759]
[1754813703257,0.94554164,4193.5,4193.0,0.4847]
[1754813703453,0.94554164,4193.5,4192.6,3.2078]
[1754813703454,1.40644164,4193.9,4193.2,3.2078]
[1754813703660,0.8458,4194.2,4193.6,0.4847]
[1754813703867,0.8458,4194.2,4193.7,0.8621]
[1754813704057,0.8458,4194.2,4193.5,0.47689]
[1754813704253,0.8458,4194.2,4193.6,0.47688]
[1754813704459,0.8458,4194.2,4193.8,0.8709]
[1754813704654,0.56064164,4194.3,4193.9,1.3468]
[1754813704860,3.2078,4194.4,4193.9,0.4759]
[1754813705063,3.2078,4194.4,4193.8,3.68466]
[1754813705064,4.1455,4194.4,4193.8,3.2078]
[1754813705252,0.8688,4194.3,4193.8,3.2078]
[1754813705458,0.8688,4194.3,4194.2,1.2908]
[1754813706558,3.2078,4194.4,4192.9,1.2908]
[1754813706559,0.4833,4193.5,4192.9,1.2908]
[1754813706759,0.8688,4193.4,4192.9,1.2908]
[1754813706955,0.8688,4193.4,4193.0,1.2908]
[1754813707160,0.8688,4193.4,4193.1,1.2908]
[1754813707370,0.8688,4193.4,4192.9,1.2908]
[1754813707563,0.4768,4193.0,4192.8,3.2078]
[1754813707865,1.3456,4192.9,4192.8,3.2078]
[1754813709663,0.8688,4192.9,4192.8,4.4986]
[1754813710868,1.3456,4192.9,4192.8,3.2078]
[1754813711461,0.8688,4192.9,4192.8,3.2078]
[1754813711663,0.8688,4192.9,4192.8,4.4986]
[1754813711961,0.8688,4193.4,4192.9,0.459]
[1754813712167,0.47695,4193.1,4193.0,1.2908]
[1754813712357,1.34575,4193.1,4193.0,0.459]
[1754813712563,1.82255,4193.1,4192.8,3.2078]
[1754813712771,0.47695,4193.1,4192.8,3.2078]
[1754813713069,1.3456,4192.9,4192.8,3.2078]
[1754813713463,1.3456,4193.2,4192.4,0.459]
[1754813713665,1.3456,4193.0,4192.4,0.459]
[1754813714367,0.477,4192.7,4192.5,0.459]
[1754813714565,0.47702,4192.5,4192.2,3.2078]
[1754813714764,0.4833,4192.4,4192.3,1.2908]
[1754813715767,1.3456,4192.4,4192.2,3.2078]
[1754813716160,0.47702,4192.5,4192.2,3.2078]
[1754813716362,1.3456,4192.3,4192.2,3.2078]
[1754813716567,0.4771,4191.8,4191.6,3.2078]
[1754813716772,1.3459,4191.8,4191.7,1.2908]
[1754813716975,1.3459,4191.8,4191.7,0.459]
[1754813717172,1.8227,4191.8,4191.7,0.459]
[1754813717370,0.4771,4191.7,4191.1,1.2908]
[1754813717564,0.4771,4191.7,4191.2,0.8537]
[1754813717771,3.2078,4192.3,4191.1,0.47716]
[1754813718169,0.56527795,4192.4,4191.6,1.2908]
[1754813718470,1.24913471,4193.2,4190.5,1.19308]
[1754813718471,0.56527795,4192.7,4192.4,0.8318]
[1754813718777,0.47698,4192.8,4192.3,1.2908]
[1754813719074,1.34578,4192.8,4192.1,3.2078]
[1754813719262,1.34581,4192.6,4192.2,0.4371]
[1754813719468,0.8688,4192.5,4192.1,3.2078]
[1754813719669,0.3855,4192.5,4192.1,3.2078]
[1754813719869,0.47699,4192.7,4192.4,1.2908]
[1754813720175,0.3855,4193.0,4192.1,3.68485]
[1754813720376,0.3855,4193.0,4192.4,1.2908]
[1754813720671,0.71231907,4193.4,4193.1,0.8537]
[1754813720874,0.47689,4193.6,4193.4,0.3947]
[1754813721075,0.8688,4193.6,4193.5,0.8961]
[1754813721275,0.14704112,4193.9,4193.8,0.459]
[1754813721576,0.4833,4194.4,4193.9,0.459]
[1754813721773,0.4768,4194.2,4194.0,0.459]
[1754813721968,0.47684,4194.0,4193.8,3.2078]
[1754813722172,1.3456,4193.9,4193.5,0.3947]
[1754813722371,0.8688,4193.8,4193.6,0.8318]
[1754813722570,0.8688,4193.8,4193.7,1.2908]
[1754813723274,0.47683,4194.1,4193.7,1.2908]
[1754813723471,1.34563,4194.1,4193.8,1.2908]
[1754813723671,0.47685,4193.9,4193.6,3.2078]
[1754813723875,0.8688,4193.9,4193.3,0.459]
[1754813724077,0.8688,4193.9,4193.6,1.2908]
[1754813724678,1.18920084,4194.2,4193.6,0.8318]
[1754813724679,0.8688,4193.8,4193.6,0.8318]
[1754813724879,0.8688,4193.8,4193.7,1.2908]
[1754813725768,0.8688,4193.8,4193.5,3.2078]
[1754813725972,1.18920084,4194.2,4193.5,3.2078]
[1754813725973,0.4833,4194.0,4193.5,4.4986]
[1754813726181,0.8688,4194.1,4193.5,3.6668]
[1754813726383,0.56533972,4194.2,4193.5,3.2078]
[1754813726573,0.56533972,4194.2,4193.6,0.459]
[1754813726574,0.8688,4193.8,4193.6,0.459]
[1754813726773,0.47685,4194.0,4193.6,0.459]
[1754813727180,0.4768,4193.9,4193.6,0.459]
[1754813727481,0.8688,4194.4,4193.8,1.2908]
[1754813727677,1.58118084,4194.7,4194.0,0.459]
[1754813727878,0.47678,4194.6,4194.1,0.8318]
[1754813728072,0.8688,4194.3,4194.2,0.459]
[1754813728672,0.8688,4194.3,4194.2,1.2908]
[1754813729385,0.8688,4194.3,4194.2,0.459]
[1754813729786,1.3456,4194.3,4194.2,0.459]
[1754813730188,1.82242,4194.2,4193.8,0.459]
[1754813730389,0.47683,4194.1,4193.8,0.459]
[1754813730787,0.47686,4193.9,4193.4,0.3947]
[1754813731086,1.3456,4193.6,4193.4,0.8537]
[1754813731288,0.8688,4193.5,4193.4,0.8537]
[1754813732890,0.8688,4193.5,4193.4,0.459]
[1754813733187,0.47691,4193.4,4192.8,3.6449]
[1754813733696,0.47691,4193.4,4192.8,3.2078]
[1754813734190,3.2078,4193.7,4193.0,0.8537]
[1754813734393,0.8688,4193.1,4193.0,0.8537]
[1754813734694,1.3456,4192.9,4192.8,0.459]
[1754813734990,1.3456,4192.6,4192.5,0.459]
[1754813735190,1.3456,4192.6,4192.2,3.2078]
[1754813735384,0.8522,4192.5,4192.0,0.8452]
[1754813735587,0.47705,4192.3,4191.7,3.2078]
[1754813735795,0.8522,4192.2,4192.0,1.2799]
[1754813735987,0.8522,4192.2,4192.1,1.2799]
[1754813736892,0.8522,4192.2,4192.1,0.4605]
[1754813737094,1.2973,4192.2,4192.1,0.4605]
[1754813737288,0.14694449,4192.6,4191.7,4.0272]
[1754813737289,1.2973,4192.0,4191.8,0.4605]
[1754813737494,1.77439,4191.9,4191.4,0.4605]
[1754813737684,0.3986,4191.8,4191.1,3.2078]
[1754813737890,0.8522,4191.8,4191.2,1.2799]
[1754813738092,1.32929,4191.9,4191.2,1.2799]
[1754813738286,1.32929,4191.9,4191.1,3.68497]
[1754813738287,1.32929,4191.9,4191.3,1.2799]
[1754813738694,1.32929,4191.9,4191.4,0.4605]
[1754813738895,0.8522,4191.8,4191.1,3.2078]
[1754813739090,0.8522,4191.8,4191.6,0.4347]
[1754813739294,0.4771,4191.7,4191.1,4.103]
[1754813739495,0.47709,4191.9,4191.3,1.2799]
[1754813739697,0.47709,4191.9,4191.4,0.4605]
[1754813739898,0.8522,4192.2,4191.7,3.2078]
[1754813740200,0.47704,4192.3,4192.0,1.2799]
[1754813740491,0.60054449,4192.6,4191.7,3.6849]
[1754813740492,0.47701,4192.5,4191.7,3.6849]
[1754813740699,0.60054449,4192.6,4192.2,3.2078]
[1754813740890,0.4536,4192.6,4192.3,1.2799]
[1754813741093,0.47697,4192.9,4192.3,1.2799]
[1754813741297,0.14694449,4193.1,4192.4,1.2799]
[1754813741495,4.06,4193.2,4192.7,0.8452]
[1754813741797,0.14694449,4193.3,4193.1,0.8194]
[1754813741988,1.32909,4193.6,4193.0,3.2078]
[1754813742190,1.32909,4193.6,4193.1,1.2799]
[1754813742391,0.8437,4193.3,4193.2,0.4347]
[1754813742596,0.4451,4193.1,4192.8,0.4605]
[1754813742791,0.8522,4192.9,4192.8,1.2799]
[1754813742993,0.4451,4193.6,4192.4,3.2078]
[1754813743203,0.8522,4193.7,4193.0,3.2078]
[1754813743497,3.6529,4194.0,4193.0,3.2078]
[1754813743696,0.8522,4193.6,4193.3,1.2799]
[1754813744003,0.8522,4193.6,4193.5,1.2799]
[1754813745498,1.2973,4193.6,4193.1,0.8194]
[1754813745697,1.2973,4193.6,4193.0,3.2078]
[1754813745698,1.77422,4193.3,4193.2,0.4605]
[1754813745899,1.77422,4193.3,4192.7,0.8194]
[1754813745900,1.2973,4193.3,4192.8,0.4605]
[1754813746101,0.47695,4193.1,4192.5,3.2078]
[1754813746300,0.8522,4192.9,4192.8,0.4605]
[1754813746502,0.8522,4192.9,4192.8,1.2799]
[1754813746906,0.4536,4192.9,4192.8,1.2799]
[1754813747094,0.47694,4193.1,4192.9,1.2799]
[1754813747294,0.3986,4193.2,4193.0,1.2799]
[1754813747509,0.56391049,4193.9,4192.7,0.3847]
[1754813747799,0.56391049,4193.9,4192.5,3.68481]
[1754813747800,0.8522,4193.7,4192.5,3.68481]
[1754813748001,0.8522,4193.7,4192.7,0.8452]
[1754813748206,0.8522,4193.7,4192.8,0.8194]
[1754813748501,0.47694,4193.2,4192.8,0.3847]
[1754813748699,0.8522,4193.7,4193.0,1.2799]
[1754813748901,0.8522,4193.3,4193.1,0.8194]
[1754813749097,0.4536,4193.6,4193.2,0.8452]
[1754813749301,0.8522,4193.6,4193.1,0.8452]
[1754813749498,0.8522,4193.6,4193.2,0.3847]
[1754813749705,0.59214297,4193.9,4193.1,0.47694]
[1754813749906,0.47686,4193.8,4193.1,1.2799]
[1754813750095,0.47686,4193.8,4193.2,0.4605]
[1754813750300,1.06900297,4193.9,4193.3,0.8194]
[1754813750997,0.99924297,4193.9,4193.5,0.8194]
[1754813751198,3.2078,4194.0,4193.5,1.2799]
[1754813751705,0.14704297,4194.2,4193.9,1.2799]
[1754813751905,1.2973,4194.3,4194.0,1.2799]
[1754813752100,0.4451,4194.3,4194.1,0.4605]
[1754813752297,0.92191,4194.3,4194.1,0.4605]
[1754813752500,3.2078,4194.8,4194.1,0.4605]
[1754813752501,0.4451,4194.2,4194.1,0.4605]
[1754813752702,1.77413,4194.1,4193.9,0.4605]
[1754813752999,0.9219,4194.4,4194.0,0.4347]
[1754813753204,0.8522,4194.2,4194.1,0.8452]
[1754813753503,0.3986,4194.1,4193.5,0.4769]
[1754813753696,0.8522,4193.9,4193.6,1.2799]
[1754813753900,0.8522,4193.9,4193.2,3.2078]
[1754813754100,0.8522,4193.9,4193.8,1.2799]
[1754813754601,1.2973,4194.6,4193.9,1.2799]
[1754813754799,1.77408,4194.6,4193.9,1.75675]
[1754813755002,1.2973,4194.6,4193.9,1.75675]
[1754813755603,1.2973,4194.6,4193.9,1.2799]
[1754813755901,0.4451,4194.6,4193.9,1.2799]
[1754813756102,0.8522,4194.5,4193.9,1.2799]
[1754813756607,0.8522,4194.5,4194.1,0.47683]
[1754813756809,0.4451,4194.5,4194.3,0.4605]
[1754813757510,0.8522,4194.4,4194.3,0.4605]
[1754813759115,0.8522,4194.4,4194.3,1.2799]
[1754813759510,1.7351,4194.4,4194.3,2.149]
[1754813760413,0.8829,4194.4,4194.3,2.149]
[1754813760614,1.56518595,4195.2,4194.4,1.2799]
[1754813760811,1.7351,4195.2,4195.1,0.759]
[1754813761014,2.44808595,4195.2,4195.1,0.759]
[1754813761411,2.89318595,4195.2,4194.8,0.8194]
[1754813761617,1.7351,4195.0,4194.9,2.149]
[1754813761808,0.71298595,4195.2,4194.9,2.16524]
[1754813762108,4.9429,4195.3,4195.2,2.149]
[1754813762506,0.6047,4194.9,4194.8,1.0741]
[1754813762707,1.3365,4194.9,4194.8,2.149]
[1754813763008,0.5783,4194.9,4194.8,2.149]
[1754813763314,1.03123563,4195.2,4195.1,0.554]
[1754813763512,0.8829,4195.2,4195.1,2.149]